fUST/lending_fUST_20250305
["ID","MTS","AMOUNT","RATE_DAILY","PERIOD"]
[355460149,1741187439801,-530.79579358,0.00038356,9]
[355460150,1741187439811,-500.0,0.00038356,9]
[355460152,1741187439822,-1000.0,0.00038356,90]
[355460155,1741187439833,-500.0,0.00038356,9]
[355460156,1741187439842,-503.00221265,0.00038356,9]
[355460158,1741187439852,-267.95432052,0.00038356,9]
[355460160,1741187439862,-1344.2,0.00038356,9]
[355460162,1741187439872,-500.0,0.00038356,9]
[355460164,1741187439881,-500.0,0.00038356,9]
[355460166,1741187439891,-500.0,0.00038356,9]
[355460168,1741187439900,-504.83263754,0.00038356,9]
[355460170,1741187439910,-500.0,0.00038356,9]
[355460172,1741187439921,-502.04221233,0.00038356,9]
[355460175,1741187439930,-508.00064218,0.00038356,9]
[355460177,1741187439940,-546.56,0.00038356,9]
[355460178,1741187439949,-500.0,0.00038356,9]
[355460179,1741187439959,-500.0,0.00038356,9]
[355460180,1741187439971,-500.0,0.00038356,9]
[355460181,1741187440161,-585.08,0.00038356,9]
[355460182,1741187440173,-500.0,0.00038356,9]
[355460183,1741187440183,-500.0,0.00038356,9]
[355460184,1741187440193,-500.0,0.00038356,9]
[355460186,1741187440202,-500.0,0.00038356,9]
[355460188,1741187440212,-539.85,0.00038356,9]
[355460190,1741187440222,-754.45,0.00038356,9]
[355460192,1741187440231,-550.09,0.00038356,9]
[355460194,1741187440240,-278.17159363,0.00038356,9]
[355460196,1741187440250,-502.15060428,0.00038356,9]
[355460197,1741187440259,-500.0,0.00038356,9]
[355460198,1741187440269,-1012.28,0.00038356,9]
[355460199,1741187440278,-516.88350948,0.00038356,9]
[355460200,1741187440287,-500.0,0.00038356,9]
[355460201,1741187440297,-500.0,0.00038356,9]
[355460202,1741187440306,-500.0,0.00038356,9]
[355460203,1741187440315,-500.0,0.00038356,9]
[355460204,1741187440324,-500.0,0.00038356,9]
[355460205,1741187440333,-198.70733584,0.00038356,9]
[355460206,1741187440343,-500.0,0.00038356,9]
[355460207,1741187440352,-500.0,0.00038356,9]
[355460208,1741187440362,-500.0,0.00038356,9]
[355460209,1741187440371,-500.0,0.00038356,9]
[355460210,1741187440381,-507.99171395,0.00038356,9]
[355460211,1741187440391,-500.0,0.00038356,9]
[355460212,1741187440401,-500.0,0.00038356,9]
[355460213,1741187440411,-500.0,0.00038356,9]
[355460214,1741187440425,-1873.37,0.00038356,120]
[355460215,1741187440435,-502.76717224,0.00038356,9]
[355460216,1741187440444,-500.0,0.00038356,9]
[355460217,1741187440454,-500.0,0.00038356,9]
[355460218,1741187440468,-500.0,0.00038356,9]
[355460219,1741187440477,-378.64560872,0.00038356,9]
[355460220,1741187440487,-508.05180519,0.00038356,9]
[355460221,1741187440497,-511.89310617,0.00038356,9]
[355460222,1741187440507,-513.81152418,0.00038356,9]
[355460223,1741187440518,-500.0,0.00038356,9]
[355460224,1741187440528,-500.0,0.00038356,9]
[355460225,1741187440538,-738.55,0.00038356,9]
[355460226,1741187440548,-500.0,0.00038356,9]
[355460227,1741187440558,-500.0,0.00038356,9]
[355460228,1741187440568,-500.0,0.00038356,9]
[355460229,1741187440579,-500.0,0.00038356,9]
[355460230,1741187440588,-500.0,0.00038356,9]
[355460231,1741187440598,-500.0,0.00038356,9]
[355460232,1741187440609,-500.0,0.00038356,9]
[355460233,1741187440618,-502.70261033,0.00038356,9]
[355460234,1741187440628,-500.0,0.00038356,9]
[355460235,1741187440638,-500.0,0.00038356,9]
[355460236,1741187440647,-500.84825885,0.00038356,9]
[355460237,1741187440657,-937.75,0.00038356,9]
[355460238,1741187440669,-508.24,0.00038356,9]
[355460239,1741187440679,-500.0,0.00038356,9]
[355460240,1741187440688,-505.01602743,0.00038356,9]
[355460241,1741187440698,-500.0,0.00038356,9]
[355460242,1741187440708,-500.0,0.00038356,9]
[355460243,1741187440718,-500.0,0.00038356,9]
[355460244,1741187440727,-507.1273786,0.00038356,9]
[355460245,1741187440737,-502.93886783,0.00038356,9]
[355460246,1741187440747,-506.40245532,0.00038356,9]
[355460247,1741187440756,-500.0,0.00038356,9]
[355460248,1741187440766,-500.0,0.00038356,9]
[355460249,1741187440775,-2318.05,0.00038356,5]
[355460250,1741187440785,-500.0,0.00038356,9]
[355460251,1741187440795,-500.0,0.00038356,9]
[355460252,1741187440804,-371.26214675,0.00038356,9]
[355460253,1741187440813,-500.0,0.00038356,9]
[355460254,1741187440823,-860.37,0.00038356,9]
[355460255,1741187440832,-500.0,0.00038356,9]
[355460256,1741187440842,-500.0,0.00038356,9]
[355460257,1741187440851,-498.00000002,0.00038356,9]
[355460258,1741187440861,-500.0,0.00038356,9]
[355460259,1741187440871,-500.0,0.00038356,9]
[355460260,1741187440880,-771.79,0.00038356,9]
[355460261,1741187440892,-500.0,0.00038356,9]
[355460262,1741187440901,-500.0,0.00038356,9]
[355460263,1741187440910,-500.0,0.00038356,9]
[355460264,1741187440922,-500.0,0.00038356,9]
[355460265,1741187440932,-500.0,0.00038356,9]
[355460266,1741187440942,-500.0,0.00038356,9]
[355460267,1741187440951,-500.0,0.00038356,9]
[355460268,1741187440961,-537.68285329,0.00038356,9]
[355460269,1741187440970,-500.0,0.00038356,9]
[355460270,1741187440983,-500.0,0.00038356,9]
[355460271,1741187440994,-500.0,0.00038356,9]
[355460272,1741187441004,-523.64,0.00038356,9]
[355460273,1741187441014,-1000.0,0.00038356,9]
[355460274,1741187441025,-505.82,0.00038356,9]
[355460275,1741187441035,-500.0,0.00038356,9]
[355460276,1741187441048,-500.0,0.00038356,9]
[355460277,1741187441061,-500.0,0.00038356,9]
[355460278,1741187441070,-500.0,0.00038356,9]
[355460279,1741187441080,-500.0,0.00038356,9]
[355460280,1741187441089,-500.0,0.00038356,120]
[355460281,1741187441099,-511.53551948,0.00038356,9]
[355460282,1741187441108,-524.59068703,0.00038356,9]
[355460283,1741187441118,-500.0,0.00038356,9]
[355460284,1741187441127,-500.0,0.00038356,9]
[355460285,1741187441136,-500.0,0.00038356,9]
[355460286,1741187441146,-500.0,0.00038356,9]
[355460287,1741187441155,-985.14,0.00038356,9]
[355460288,1741187441167,-500.0,0.00038356,9]
[355460289,1741187441176,-500.0,0.00038356,9]
[355460290,1741187441186,-500.0,0.00038356,9]
[355460291,1741187441195,-509.00343028,0.00038356,9]
[355460292,1741187441205,-500.0,0.00038356,9]
[355460293,1741187441215,-500.0,0.00038356,9]
[355460294,1741187441224,-500.0,0.00038356,9]
[355460295,1741187441234,-500.0,0.00038356,9]
[355460296,1741187441244,-500.0,0.00038356,9]
[355460297,1741187441254,-500.0,0.00038356,9]
[355460298,1741187441263,-472.47452747,0.00038356,9]
[355460299,1741187441273,-504.99364427,0.00038356,9]
[355460300,1741187441282,-500.0,0.00038356,9]
[355460301,1741187441291,-508.03485846,0.00038356,9]
[355460302,1741187441301,-251.20332346,0.00038356,9]
[355460303,1741187441310,-504.92280014,0.00038356,9]
[355460304,1741187441319,-500.0,0.00038356,9]
[355460305,1741187441328,-506.90269467,0.00038356,9]
[355460306,1741187441337,-500.0,0.00038356,9]
[355460307,1741187441347,-500.0,0.00038356,9]
[355460308,1741187441359,-1284.99,0.00038356,9]
[355460309,1741187441369,-500.0,0.00038356,9]
[355460310,1741187441379,-657.32,0.00038356,9]
[355460311,1741187441388,-758.14,0.00038356,9]
[355460312,1741187441398,-500.0,0.00038356,9]
[355460313,1741187441409,-500.0,0.00038356,9]
[355460314,1741187441422,-500.0,0.00038356,9]
[355460315,1741187441431,-506.2752855,0.00038356,9]
[355460316,1741187441441,-500.0,0.00038356,9]
[355460317,1741187441451,-500.0,0.00038356,9]
[355460318,1741187441461,-500.0,0.00038356,9]
[355460319,1741187441471,-500.0,0.00038356,9]
[355460320,1741187441481,-1083.31,0.00038356,9]
[355460321,1741187441491,-502.70778271,0.00038356,9]
[355460322,1741187441500,-500.0,0.00038356,9]
[355460323,1741187441510,-500.0,0.00038356,9]
[355460324,1741187441520,-262.24514102,0.00038356,9]
[355460325,1741187441529,-500.0,0.00038356,9]
[355460326,1741187441539,-500.0,0.00038356,9]
[355460327,1741187441549,-500.0,0.00038356,9]
[355460328,1741187441559,-512.21037182,0.00038356,9]
[355460329,1741187441569,-500.0,0.00038356,9]
[355460330,1741187441578,-1106.01,0.00038356,9]
[355460331,1741187441587,-504.05867191,0.00038356,9]
[355460332,1741187441597,-500.0,0.00038356,9]
[355460333,1741187441607,-500.0,0.00038356,9]
[355460334,1741187441616,-500.0,0.00038356,9]
[355460335,1741187441627,-500.0,0.00038356,9]
[355460336,1741187441637,-500.0,0.00038356,9]
[355460337,1741187441646,-1928.03,0.00038356,9]
[355460338,1741187441656,-500.0,0.00038356,9]
[355460339,1741187441669,-500.0,0.00038356,9]
[355460340,1741187441678,-472.40789774,0.00038356,9]
[355460341,1741187441688,-500.0,0.00038356,9]
[355460342,1741187441698,-514.83976532,0.00038356,9]
[355460343,1741187441708,-500.0,0.00038356,9]
[355460344,1741187441718,-505.03839355,0.00038356,9]
[355460345,1741187441728,-500.0,0.00038356,9]
[355460346,1741187441738,-504.20835924,0.00038356,9]
[355460347,1741187441747,-500.0,0.00038356,9]
[355460348,1741187441756,-817.64,0.00038356,9]
[355460349,1741187441766,-507.64316337,0.00038356,9]
[355460350,1741187441777,-508.75460743,0.00038356,9]
[355460351,1741187441787,-531.6,0.00038356,9]
[355460352,1741187441797,-508.60840444,0.00038356,9]
[355460353,1741187441807,-500.0,0.00038356,9]
[355460354,1741187441817,-501.0669255,0.00038356,9]
[355460355,1741187441827,-500.0,0.00038356,9]
[355460356,1741187441837,-524.94887391,0.00038356,9]
[355460357,1741187441847,-506.7934841,0.00038356,9]
[355460358,1741187441857,-500.0,0.00038356,9]
[355460359,1741187441866,-3986.96,0.00038356,9]
[355460360,1741187441875,-500.0,0.00038356,9]
[355460361,1741187441885,-500.0,0.00038356,9]
[355460362,1741187441895,-500.0,0.00038356,9]
[355460363,1741187441904,-500.0,0.00038356,9]
[355460364,1741187441914,-500.0,0.00038356,9]
[355460365,1741187441927,-507.74531212,0.00038356,9]
[355460366,1741187441936,-921.02,0.00038356,9]
[355460367,1741187441946,-500.0,0.00038356,9]
[355460368,1741187441955,-1245.88,0.00038356,9]
[355460369,1741187441967,-500.0,0.00038356,9]
[355460370,1741187441980,-500.0,0.00038356,9]
[355460371,1741187441990,-502.82,0.00038356,9]
[355460372,1741187441999,-500.0,0.00038356,9]
[355460373,1741187442009,-500.0,0.00038356,9]
[355460374,1741187442020,-500.0,0.00038356,9]
[355460375,1741187442031,-503.31181424,0.00038356,9]
[355460376,1741187442042,-500.0,0.00038356,9]
[355460377,1741187442054,-500.0,0.00038356,9]
[355460378,1741187442065,-500.0,0.00038356,9]
[355460379,1741187442074,-525.07608426,0.00038356,9]
[355460380,1741187442084,-524.53507004,0.00038356,9]
[355460381,1741187442094,-504.41618005,0.00038356,9]
[355460382,1741187442104,-1084.9,0.00038356,9]
[355460383,1741187442114,-500.0,0.00038356,9]
[355460384,1741187442124,-509.2969645,0.00038356,9]
[355460385,1741187442134,-7521.21,0.00038356,9]
[355460386,1741187442144,-500.0,0.00038356,9]
[355460387,1741187442154,-618.82,0.00038356,9]
[355460388,1741187442163,-230.87111094,0.00038356,9]
[355460389,1741187442175,-500.0,0.00038356,9]
[355460390,1741187442183,-500.0,0.00038356,9]
[355460391,1741187442192,-500.0,0.00038356,9]
[355460392,1741187442201,-500.0,0.00038356,9]
[355460393,1741187442210,-585.77,0.00038356,9]
[355460394,1741187442219,-505.84966673,0.00038356,9]
[355460395,1741187442228,-500.0,0.00038356,9]
[355460396,1741187442238,-2272.97,0.00038356,9]
[355460397,1741187442247,-500.0,0.00038356,9]
[355460398,1741187442255,-509.67648453,0.00038356,9]
[355460399,1741187442265,-5677.26,0.00038356,9]
[355460400,1741187442274,-529.29,0.00038356,9]
[355460401,1741187442283,-539.57,0.00038356,9]
[355460402,1741187442293,-500.0,0.00038356,9]
[355460403,1741187442302,-500.0,0.00038356,9]
[355460404,1741187442311,-472.63420088,0.00038356,9]
[355460405,1741187442320,-701.36,0.00038356,9]
[355460406,1741187442329,-1395.99,0.00038356,9]
[355460407,1741187442339,-1929.72,0.00038356,9]
[355460408,1741187442347,-1284.38,0.00038356,9]
[355460409,1741187442356,-500.0,0.00038356,9]
[355460410,1741187442366,-500.0,0.00038356,9]
[355460411,1741187442376,-192.68993,0.00038356,14]
[355460413,1741187442386,-500.0,0.00038356,9]
[355460415,1741187442395,-228.41910971,0.00038356,9]
[355460417,1741187442405,-650.87,0.00038356,9]
[355460418,1741187442416,-500.0,0.00038356,9]
[355460419,1741187442426,-505.72006891,0.00038356,9]
[355460420,1741187442436,-490.25526841,0.00038356,9]
[355460421,1741187442445,-502.0,0.00038356,9]
[355460422,1741187442455,-500.0,0.00038356,9]
[355460423,1741187442465,-500.0,0.00038356,9]
[355460424,1741187442475,-196.18649324,0.00038356,9]
[355460425,1741187442484,-500.0,0.00038356,9]
[355460426,1741187442494,-1611.48,0.00038356,9]
[355460427,1741187442503,-500.0,0.00038356,9]
[355460428,1741187442513,-840.36,0.00038356,9]
[355460429,1741187442523,-1170.43,0.00038356,9]
[355460431,1741187442533,-500.0,0.00038356,9]
[355460432,1741187442542,-511.93468394,0.00038356,9]
[355460434,1741187442552,-500.0,0.00038356,9]
[355460435,1741187442562,-500.0,0.00038356,9]
[355460436,1741187442572,-504.83662954,0.00038356,9]
[355460437,1741187442581,-504.59506451,0.00038356,9]
[355460438,1741187442591,-500.0,0.00038356,9]
[355460439,1741187442601,-500.0,0.00038356,9]
[355460442,1741187442611,-504.78946379,0.00038356,9]
[355460443,1741187442621,-500.0,0.00038356,9]
[355460444,1741187442631,-500.0,0.00038356,9]
[355460445,1741187442641,-500.0,0.00038356,9]
[355460446,1741187442650,-500.0,0.00038356,9]
[355460447,1741187442660,-500.0,0.00038356,9]
[355460449,1741187442684,-500.0,0.00038356,9]
[355460450,1741187442695,-725.8,0.00038356,9]
[355460452,1741187442706,-546.94,0.00038356,9]
[355460453,1741187442715,-500.0,0.00038356,9]
[355460455,1741187442726,-637.61,0.00038356,9]
[355460456,1741187442737,-500.0,0.00038356,9]
[355460457,1741187442747,-646.13,0.00038356,9]
[355460458,1741187442757,-737.2,0.00038356,9]
[355460460,1741187442767,-500.0,0.00038356,9]
[355460462,1741187442777,-996.5,0.00038356,9]
[355460464,1741187442787,-500.0,0.00038356,9]
[355460466,1741187442796,-151.0,0.00038356,14]
[355460468,1741187442807,-151.0,0.00038356,14]
[355460470,1741187442817,-814.02,0.00038356,9]
[355460472,1741187442826,-151.0,0.00038356,14]
[355460474,1741187442836,-151.0,0.00038356,14]
[355460476,1741187442846,-151.0,0.00038356,14]
[355460478,1741187442856,-500.0,0.00038356,9]
[355460480,1741187442866,-151.0,0.00038356,14]
[355460482,1741187442875,-300.768979,0.00038356,14]
[355460484,1741187442885,-500.0,0.00038356,9]
[355460486,1741187442895,-518.18733594,0.00038356,9]
[355460488,1741187442905,-9594.6,0.00038356,9]
[355460490,1741187442915,-500.0,0.00038356,9]
[355460492,1741187442925,-500.0,0.00038356,9]
[355460495,1741187442936,-500.0,0.00038356,9]
[355460497,1741187442946,-500.0,0.00038356,9]
[355460499,1741187442957,-881.98,0.00038356,9]
[355460501,1741187442968,-500.0,0.00038356,9]
[355460503,1741187442978,-500.0,0.00038356,9]
[355460504,1741187442988,-788.92,0.00038356,9]
[355460506,1741187442997,-500.0,0.00038356,9]
[355460508,1741187443007,-500.0,0.00038356,9]
[355460510,1741187443018,-500.0,0.00038356,9]
[355460513,1741187443028,-75618.68,0.00038356,7]
[355460515,1741187443037,-505.71931318,0.00038356,9]
[355460517,1741187443047,-500.0,0.00038356,9]
[355460519,1741187443058,-503.5455176,0.00038356,9]
[355460521,1741187443068,-507.77034355,0.00038356,9]
[355460523,1741187443078,-500.0,0.00038356,9]
[355460525,1741187443087,-500.0,0.00038356,9]
[355460527,1741187443097,-500.0,0.00038356,9]
[355460528,1741187443106,-500.0,0.00038356,9]
[355460531,1741187443116,-500.0,0.00038356,9]
[355460533,1741187443125,-500.0,0.00038356,9]
[355460535,1741187443135,-500.0,0.00038356,9]
[355460537,1741187443146,-500.0,0.00038356,9]
[355460539,1741187443156,-500.0,0.00038356,9]
[355460541,1741187443167,-1623.5,0.00038356,9]
[355460543,1741187443177,-416.66666667,0.00038356,7]
[355460545,1741187443187,-500.0,0.00038356,9]
[355460547,1741187443196,-437.30035071,0.00038356,9]
[355460549,1741187443206,-500.0,0.00038356,9]
[355460551,1741187443216,-525.65,0.00038356,9]
[355460554,1741187443227,-2022.1,0.00038356,9]
[355460556,1741187443237,-500.0,0.00038356,9]
[355460558,1741187443247,-500.0,0.00038356,9]
[355460560,1741187443257,-500.0,0.00038356,9]
[355460562,1741187443268,-500.0,0.00038356,9]
[355460564,1741187443277,-500.0,0.00038356,9]
[355460566,1741187443287,-500.0,0.00038356,9]
[355460569,1741187443298,-500.0,0.00038356,9]
[355460571,1741187443312,-4524.2,0.00038356,9]
[355460573,1741187443322,-500.0,0.00038356,9]
[355460575,1741187443332,-500.0,0.00038356,9]
[355460577,1741187443342,-158.35447101,0.00038356,9]
[355460579,1741187443351,-500.0,0.00038356,9]
[355460581,1741187443361,-329.100876,0.00038356,14]
[355460583,1741187443371,-329.100876,0.00038356,14]
[355460585,1741187443381,-643.34,0.00038356,9]
[355460587,1741187443391,-329.100876,0.00038356,14]
[355460589,1741187443400,-820.66,0.00038356,9]
[355460591,1741187443410,-329.100876,0.00038356,14]
[355460594,1741187443423,-329.100876,0.00038356,14]
[355460596,1741187443432,-329.100876,0.00038356,14]
[355460598,1741187443442,-329.100876,0.00038356,14]
[355460600,1741187443452,-329.100876,0.00038356,14]
[355460602,1741187443462,-329.100876,0.00038356,14]
[355460604,1741187443472,-904.71,0.00038356,9]
[355460606,1741187443482,-500.0,0.00038356,9]
[355460608,1741187443492,-329.100876,0.00038356,14]
[355460610,1741187443502,-329.100876,0.00038356,14]
[355460612,1741187443512,-697.33,0.00038356,9]
[355460614,1741187443522,-329.100876,0.00038356,14]
[355460616,1741187443532,-329.100876,0.00038356,14]
[355460618,1741187443543,-500.0,0.00038356,9]
[355460620,1741187443553,-329.100876,0.00038356,14]
[355460622,1741187443563,-329.100876,0.00038356,14]
[355460624,1741187443573,-329.100876,0.00038356,14]
[355460626,1741187443582,-329.100876,0.00038356,14]
[355460628,1741187443592,-500.0,0.00038356,9]
[355460630,1741187443602,-329.100878,0.00038356,14]
[355460632,1741187443612,-500.0,0.00038356,9]
[355460634,1741187443622,-5134.24,0.00038356,9]
[355460636,1741187443631,-500.0,0.00038356,9]
[355460638,1741187443641,-616.65,0.00038356,9]
[355460640,1741187443651,-505.34826254,0.00038356,9]
[355460642,1741187443661,-500.0,0.00038356,9]
[355460644,1741187443675,-500.0,0.00038356,9]
[355460646,1741187443686,-500.0,0.00038356,9]
[355460648,1741187443695,-500.0,0.00038356,9]
[355460650,1741187443705,-500.0,0.00038356,9]
[355460652,1741187443715,-500.0,0.00038356,9]
[355460654,1741187443724,-1097.64,0.00038356,9]
[355460656,1741187443734,-500.0,0.00038356,9]
[355460659,1741187443743,-1523.34,0.00038356,9]
[355460661,1741187443754,-500.0,0.00038356,9]
[355460662,1741187443764,-757.05,0.00038356,9]
[355460664,1741187443773,-509.76833701,0.00038356,9]
[355460667,1741187443783,-500.0,0.00038356,9]
[355460669,1741187443793,-500.0,0.00038356,9]
[355460671,1741187443803,-467.88395672,0.00038356,9]
[355460673,1741187443812,-506.64125087,0.00038356,9]
[355460675,1741187443821,-500.0,0.00038356,9]
[355460677,1741187443831,-500.0,0.00038356,9]
[355460679,1741187443841,-1237.39,0.00038356,9]
[355460681,1741187443851,-500.0,0.00038356,9]
[355460683,1741187443861,-500.0,0.00038356,9]
[355460685,1741187443871,-500.0,0.00038356,9]
[355460687,1741187443881,-191.27193687,0.00038356,9]
[355460689,1741187443891,-16251.55,0.00038356,9]
[355460691,1741187443901,-500.0,0.00038356,9]
[355460693,1741187443911,-383.65011932,0.00038356,9]
[355460695,1741187443923,-1244.66,0.00038356,9]
[355460697,1741187443932,-500.0,0.00038356,9]
[355460699,1741187443942,-507.81826945,0.00038356,9]
[355460701,1741187443951,-500.68071945,0.00038356,9]
[355460703,1741187443960,-500.0,0.00038356,9]
[355460705,1741187443973,-500.0,0.00038356,9]
[355460707,1741187443984,-504.32906878,0.00038356,9]
[355460709,1741187443994,-503.13417113,0.00038356,9]
[355460711,1741187444005,-500.0,0.00038356,9]
[355460713,1741187444016,-500.0,0.00038356,9]
[355460715,1741187444026,-505.79856824,0.00038356,9]
[355460717,1741187444035,-500.0,0.00038356,9]
[355460719,1741187444044,-520.22,0.00038356,9]
[355460721,1741187444054,-1365.03,0.00038356,9]
[355460723,1741187444064,-4689.59,0.00038356,9]
[355460725,1741187444073,-502.17958882,0.00038356,9]
[355460727,1741187444082,-500.0,0.00038356,9]
[355460729,1741187444091,-1167.86,0.00038356,9]
[355460731,1741187444101,-1825.04,0.00038356,9]
[355460733,1741187444110,-500.0,0.00038356,9]
[355460735,1741187444119,-500.0,0.00038356,9]
[355460737,1741187444130,-528.57926136,0.00038356,9]
[355460739,1741187444140,-500.0,0.00038356,9]
[355460741,1741187444150,-500.0,0.00038356,9]
[355460743,1741187444159,-652.97,0.00038356,9]
[355460745,1741187444173,-500.0,0.00038356,9]
[355460747,1741187444183,-500.0,0.00038356,9]
[355460749,1741187444193,-842.5,0.00038356,9]
[355460751,1741187444202,-500.0,0.00038356,9]
[355460753,1741187444212,-1406.81,0.00038356,9]
[355460755,1741187444221,-1000.0,0.00038356,9]
[355460757,1741187444231,-9999.0,0.00038356,2]
[355460759,1741187444241,-5549.49,0.00038356,9]
[355460761,1741187444251,-502.00232462,0.00038356,7]
[355460764,1741187444262,-6361.75,0.00038356,9]
[355460766,1741187444272,-878.95,0.00038356,9]
[355460768,1741187444282,-500.0,0.00038356,9]
[355460770,1741187444292,-500.0,0.00038356,9]
[355460795,1741187444512,-577.98,0.00038356,9]
[355460797,1741187444522,-246.68000483,0.00038356,2]
[355460799,1741187444532,-160.02183736,0.00038373,5]
[355460801,1741187444541,-500.0,0.00038373,5]
[355460803,1741187444551,-500.0,0.00038373,5]
[355460805,1741187444561,-500.0,0.00038373,5]
[355460807,1741187444570,-500.0,0.00038373,5]
[355460809,1741187444580,-500.0,0.00038373,5]
[355460811,1741187444590,-500.0,0.00038373,5]
[355460813,1741187444600,-500.67386802,0.00038373,5]
[355460815,1741187444610,-500.0,0.00038373,2]
[355460817,1741187444619,-500.0,0.00038373,5]
[355460819,1741187444629,-500.0,0.00038373,5]
[355460821,1741187444638,-500.0,0.00038373,5]
[355460823,1741187444648,-500.0,0.00038373,5]
[355460825,1741187444657,-429.57581091,0.00038373,5]
[355460827,1741187444669,-500.70047773,0.00038373,5]
[355460829,1741187444679,-150.43,0.00038383,9]
[355460831,1741187444688,-500.0,0.00038383,9]
[355460833,1741187444698,-500.0,0.00038383,9]
[355460835,1741187444707,-502.0,0.00038383,9]
[355460837,1741187444716,-2206.88,0.000384,14]
[355460839,1741187444726,-1146.64,0.000384,30]
[355460840,1741187444736,-884.35,0.000384,30]
[355460843,1741187444746,-421.89,0.000384,30]
[355460844,1741187444756,-438.1,0.000384,30]
[355460846,1741187444766,-151.0,0.000384,16]
[355460849,1741187444776,-500.0,0.00038411,9]
[355460850,1741187444786,-500.0,0.00038411,9]
[355460852,1741187444796,-502.0,0.00038411,9]
[355460854,1741187444806,-500.0,0.00038438,9]
[355460855,1741187444816,-500.0,0.00038438,9]
[355460857,1741187444825,-502.0,0.00038438,9]
[355460859,1741187444835,-587.627812,0.00038466,9]
[355460861,1741187444844,-500.0,0.00038466,9]
[355460863,1741187444854,-502.0,0.00038466,9]
[355460865,1741187444863,-967.09694383,0.00038493,9]
[355460867,1741187444873,-502.0,0.00038493,9]
[355460869,1741187444882,-1873.37,0.00038493,120]
[355460871,1741187444892,-416.66666667,0.00038493,120]
[355460873,1741187444901,-1421.29140937,0.000385,2]
[355460875,1741187444912,-151.0,0.000385,19]
[355460877,1741187444923,-151.0,0.000385,17]
[355460879,1741187444933,-502.0,0.0003852,9]
[355460881,1741187444943,-502.0,0.00038548,9]
[355460883,1741187444952,-502.0,0.00038575,9]
[355460885,1741187444962,-151.0,0.000386,10]
[355460887,1741187444976,-502.0,0.00038603,9]
[355460889,1741187444985,-1000.0,0.00038629,120]
[355460891,1741187444995,-502.0,0.0003863,9]
[355460893,1741187445005,-506.07395047,0.0003863,9]
[355460895,1741187445015,-182.67934548,0.0003863,9]
[355460897,1741187445024,-500.0,0.0003863,9]
[355460899,1741187445034,-500.0,0.0003863,9]
[355460901,1741187445043,-500.0,0.0003863,9]
[355460903,1741187445054,-500.0,0.0003863,90]
[355460905,1741187445064,-500.0,0.0003863,9]
[355460907,1741187445074,-500.0,0.0003863,9]
[355460909,1741187445083,-500.0,0.0003863,9]
[355460911,1741187445093,-521.52,0.0003863,9]
[355460913,1741187445102,-500.0,0.0003863,9]
[355460915,1741187445111,-500.0,0.0003863,9]
[355460917,1741187445122,-500.0,0.0003863,120]
[355460919,1741187445132,-500.0,0.0003863,9]
[355460921,1741187445142,-500.0,0.0003863,9]
[355460923,1741187445152,-500.0,0.0003863,9]
[355460925,1741187445161,-500.0,0.0003863,9]